[Event "Titled Tuesday Blitz November 08 Late 2022"]
[White "Viana Da Costa, Fernando"]
[Black "Ambartsumova, Karina"]
[WhiteFideId "2111900"]
[BlackFideId "4166299"]
[WhiteElo "2259"]
[BlackElo "2319"]
[Result "1/2-1/2"]
[Round "07"]
[TimeControl "180+1"]
[Date "2022.11.09"]
[WhiteClock "0:00:05"]
[BlackClock "0:00:04"]

1. e4 {[%clk 0:03:00]}  e5 {[%clk 0:02:59]} 2. Nf3 {[%clk 0:03:00]}  Nc6 {[%clk 0:02:58]} 3. Bb5 {[%clk 0:03:00]}  Nf6 {[%clk 0:02:57]} 4. d3 {[%clk 0:02:59]}  d6 {[%clk 0:02:54]} 5. h3 {[%clk 0:02:57]}  Bd7 {[%clk 0:02:51]} 6. c3 {[%clk 0:02:56]}  g6 {[%clk 0:02:52]} 7. O-O {[%clk 0:02:56]}  Bg7 {[%clk 0:02:52]} 8. Re1 {[%clk 0:02:55]}  O-O {[%clk 0:02:52]} 9. Nbd2 {[%clk 0:02:55]}  Qe8 {[%clk 0:02:44]} 10. Nf1 {[%clk 0:02:47]}  Nh5 {[%clk 0:02:34]} 11. a4 {[%clk 0:02:43]}  Kh8 {[%clk 0:02:31]} 12. d4 {[%clk 0:02:43]}  a6 {[%clk 0:02:08]} 13. Bc4 {[%clk 0:02:39]}  f5 {[%clk 0:02:05]} 14. dxe5 {[%clk 0:02:34]}  dxe5 {[%clk 0:02:03]} 15. a5 {[%clk 0:02:31]}  Rd8 {[%clk 0:01:59]} 16. Qc2 {[%clk 0:02:25]}  Be6 {[%clk 0:01:42]} 17. Qb3 {[%clk 0:02:17]}  Bxc4 {[%clk 0:01:36]} 18. Qxc4 {[%clk 0:02:17]}  Qf7 {[%clk 0:01:12]} 19. Qxf7 {[%clk 0:02:14]}  Rxf7 {[%clk 0:01:13]} 20. Be3 {[%clk 0:02:12]}  Rfd7 {[%clk 0:01:10]} 21. Bg5 {[%clk 0:02:08]}  Re8 {[%clk 0:01:02]} 22. b4 {[%clk 0:02:00]}  f4 {[%clk 0:01:00]} 23. g4 {[%clk 0:01:56]}  fxg3 {[%clk 0:00:56]} 24. fxg3 {[%clk 0:01:43]}  h6 {[%clk 0:00:44]} 25. Be3 {[%clk 0:01:37]}  Rd3 {[%clk 0:00:44]} 26. Rac1 {[%clk 0:01:37]}  Rf8 {[%clk 0:00:39]} 27. Kg2 {[%clk 0:01:31]}  Rfd8 {[%clk 0:00:39]} 28. Kf2 {[%clk 0:01:27]}  Nf6 {[%clk 0:00:38]} 29. N1d2 {[%clk 0:01:18]}  Kh7 {[%clk 0:00:35]} 30. Ke2 {[%clk 0:01:18]}  R3d7 {[%clk 0:00:30]} 31. g4 {[%clk 0:01:16]}  Ne8 {[%clk 0:00:16]} 32. Nc4 {[%clk 0:01:14]}  Nd6 {[%clk 0:00:16]} 33. Nxd6 {[%clk 0:01:13]}  Rxd6 {[%clk 0:00:16]} 34. Nd2 {[%clk 0:00:59]}  Kg8 {[%clk 0:00:14]} 35. Nc4 {[%clk 0:00:59]}  R6d7 {[%clk 0:00:14]} 36. Rcd1 {[%clk 0:00:56]}  Rxd1 {[%clk 0:00:14]} 37. Rxd1 {[%clk 0:00:57]}  Rxd1 {[%clk 0:00:15]} 38. Kxd1 {[%clk 0:00:57]}  Kf7 {[%clk 0:00:15]} 39. Ke2 {[%clk 0:00:55]}  h5 {[%clk 0:00:15]} 40. Kf3 {[%clk 0:00:48]}  Bf6 {[%clk 0:00:14]} 41. Bf2 {[%clk 0:00:46]}  Bg5 {[%clk 0:00:14]} 42. Bg3 {[%clk 0:00:42]}  Ke6 {[%clk 0:00:13]} 43. Ke2 {[%clk 0:00:39]}  Be7 {[%clk 0:00:11]} 44. Ne3 {[%clk 0:00:33]}  Bg5 {[%clk 0:00:09]} 45. Nd5 {[%clk 0:00:32]}  Bd8 {[%clk 0:00:08]} 46. Kd3 {[%clk 0:00:32]}  hxg4 {[%clk 0:00:08]} 47. hxg4 {[%clk 0:00:32]}  Nb8 {[%clk 0:00:08]} 48. Bf2 {[%clk 0:00:25]}  Nd7 {[%clk 0:00:08]} 49. Ne3 {[%clk 0:00:19]}  Bg5 {[%clk 0:00:07]} 50. Nc4 {[%clk 0:00:18]}  Bf4 {[%clk 0:00:07]} 51. Bh4 {[%clk 0:00:18]}  g5 {[%clk 0:00:07]} 52. Bf2 {[%clk 0:00:17]}  Nf6 {[%clk 0:00:07]} 53. Ne3 {[%clk 0:00:13]}  c6 {[%clk 0:00:05]} 54. Bg1 {[%clk 0:00:10]}  Kf7 {[%clk 0:00:05]} 55. Nf5 {[%clk 0:00:09]}  Ke6 {[%clk 0:00:04]} 56. Ne3 {[%clk 0:00:06]}  Bxe3 {[%clk 0:00:02]} 57. Bxe3 {[%clk 0:00:06]}  Nxg4 {[%clk 0:00:03]} 58. Bxg5 {[%clk 0:00:07]}  Nf2+ {[%clk 0:00:03]} 59. Ke3 {[%clk 0:00:07]}  Nd1+ {[%clk 0:00:03]} 60. Kd2 {[%clk 0:00:07]}  Nf2 {[%clk 0:00:03]} 61. Ke3 {[%clk 0:00:07]}  Ng4+ {[%clk 0:00:04]} 62. Kd3 {[%clk 0:00:05]}  Nf2+ {[%clk 0:00:04]} 63. Ke3 {[%clk 0:00:05]} 1/2-1/2


[Site "https://www.chess.com"]

[Event "Titled Tuesday Blitz November 08 Late 2022"]
[White "Wan, Joseph"]
[Black "Vlassov, Nikolai"]
[WhiteFideId "2069890"]
[BlackFideId "4103360"]
[WhiteElo "2200"]
[BlackElo "2324"]
[Result "1-0"]
[Round "07"]
[TimeControl "180+1"]
[Date "2022.11.09"]
[WhiteClock "0:00:51"]
[BlackClock "0:00:05"]

1. d4 {[%clk 0:03:00]}  Nf6 {[%clk 0:02:59]} 2. Bf4 {[%clk 0:03:00]}  g6 {[%clk 0:02:56]} 3. e3 {[%clk 0:03:01]}  Bg7 {[%clk 0:02:56]} 4. Nf3 {[%clk 0:03:01]}  O-O {[%clk 0:02:56]} 5. Be2 {[%clk 0:03:02]}  d6 {[%clk 0:02:57]} 6. h3 {[%clk 0:03:02]}  Qe8 {[%clk 0:02:48]} 7. O-O {[%clk 0:03:02]}  Nbd7 {[%clk 0:02:47]} 8. c4 {[%clk 0:03:02]}  e5 {[%clk 0:02:47]} 9. Bh2 {[%clk 0:03:02]}  b6 {[%clk 0:02:46]} 10. Nc3 {[%clk 0:03:01]}  Bb7 {[%clk 0:02:46]} 11. Nb5 {[%clk 0:02:51]}  e4 {[%clk 0:02:31]} 12. Nxc7 {[%clk 0:02:34]}  Qc8 {[%clk 0:02:15]} 13. Nxa8 {[%clk 0:02:32]}  exf3 {[%clk 0:02:13]} 14. Bxf3 {[%clk 0:02:32]}  Qxa8 {[%clk 0:01:26]} 15. Bxd6 {[%clk 0:02:18]}  Rc8 {[%clk 0:01:14]} 16. Bxb7 {[%clk 0:02:08]}  Qxb7 {[%clk 0:01:14]} 17. Rc1 {[%clk 0:02:09]}  Ne4 {[%clk 0:01:11]} 18. Bh2 {[%clk 0:02:08]}  Qa6 {[%clk 0:01:08]} 19. Qc2 {[%clk 0:02:01]}  f5 {[%clk 0:01:05]} 20. b3 {[%clk 0:01:58]}  b5 {[%clk 0:01:00]} 21. c5 {[%clk 0:01:57]}  Ndf6 {[%clk 0:00:59]} 22. f3 {[%clk 0:01:44]}  Ng5 {[%clk 0:00:56]} 23. Rfe1 {[%clk 0:01:44]}  Nd5 {[%clk 0:00:44]} 24. Qd2 {[%clk 0:01:21]}  Ne6 {[%clk 0:00:38]} 25. b4 {[%clk 0:01:12]}  Qa3 {[%clk 0:00:33]} 26. Rb1 {[%clk 0:01:12]}  Qc3 {[%clk 0:00:09]} 27. Qe2 {[%clk 0:01:01]}  Bh6 {[%clk 0:00:08]} 28. f4 {[%clk 0:00:57]}  a6 {[%clk 0:00:07]} 29. Rb3 {[%clk 0:00:54]}  Qc4 {[%clk 0:00:05]} 30. Qd2 {[%clk 0:00:51]} 1-0


[Site "https://www.chess.com"]

[Event "Titled Tuesday Blitz November 08 Late 2022"]
[White "Winterberg, Lukas"]
[Black "Harvey, Marcus R"]
[WhiteFideId "24622702"]
[BlackFideId "400092"]
[WhiteElo "2349"]
[BlackElo "2457"]
[Result "1/2-1/2"]
[Round "07"]
[TimeControl "180+1"]
[Date "2022.11.09"]
[WhiteClock "0:00:06"]
[BlackClock "0:00:09"]

1. d4 {[%clk 0:03:00]}  Nf6 {[%clk 0:02:59]} 2. Nf3 {[%clk 0:02:59]}  e6 {[%clk 0:02:59]} 3. c4 {[%clk 0:02:59]}  b6 {[%clk 0:02:59]} 4. g3 {[%clk 0:02:59]}  Bb7 {[%clk 0:03:00]} 5. Bg2 {[%clk 0:02:59]}  c5 {[%clk 0:03:00]} 6. d5 {[%clk 0:02:58]}  exd5 {[%clk 0:03:01]} 7. cxd5 {[%clk 0:02:57]}  Bxd5 {[%clk 0:03:01]} 8. Nc3 {[%clk 0:02:56]}  Bc6 {[%clk 0:03:01]} 9. e4 {[%clk 0:02:56]}  Be7 {[%clk 0:02:58]} 10. e5 {[%clk 0:02:12]}  Ne4 {[%clk 0:02:57]} 11. Nxe4 {[%clk 0:02:02]}  Bxe4 {[%clk 0:02:58]} 12. Qa4 {[%clk 0:02:03]}  Bf5 {[%clk 0:02:55]} 13. Nh4 {[%clk 0:01:53]}  Bxh4 {[%clk 0:02:54]} 14. Bxa8 {[%clk 0:01:52]}  Be7 {[%clk 0:02:54]} 15. Bg2 {[%clk 0:01:49]}  O-O {[%clk 0:02:53]} 16. O-O {[%clk 0:01:49]}  Qc7 {[%clk 0:02:51]} 17. Qf4 {[%clk 0:01:36]}  Be6 {[%clk 0:02:50]} 18. Bd2 {[%clk 0:01:33]}  Nc6 {[%clk 0:02:50]} 19. Bc3 {[%clk 0:01:32]}  b5 {[%clk 0:02:49]} 20. a3 {[%clk 0:01:29]}  a5 {[%clk 0:02:49]} 21. Rfe1 {[%clk 0:01:24]}  b4 {[%clk 0:02:42]} 22. axb4 {[%clk 0:01:25]}  axb4 {[%clk 0:02:42]} 23. Bd2 {[%clk 0:01:25]}  Nd4 {[%clk 0:02:43]} 24. Rac1 {[%clk 0:01:20]}  Nb3 {[%clk 0:02:34]} 25. Rcd1 {[%clk 0:01:17]}  c4 {[%clk 0:02:27]} 26. Be4 {[%clk 0:01:11]}  Rc8 {[%clk 0:02:20]} 27. Bc2 {[%clk 0:01:06]}  Nxd2 {[%clk 0:02:04]} 28. Qxd2 {[%clk 0:01:07]}  c3 {[%clk 0:02:04]} 29. bxc3 {[%clk 0:01:07]}  b3 {[%clk 0:01:50]} 30. Bb1 {[%clk 0:01:02]}  Qxc3 {[%clk 0:01:50]} 31. Qf4 {[%clk 0:00:45]}  b2 {[%clk 0:01:45]} 32. Qe4 {[%clk 0:00:43]}  g6 {[%clk 0:01:44]} 33. h4 {[%clk 0:00:41]}  Bb4 {[%clk 0:01:37]} 34. Re3 {[%clk 0:00:36]}  Qc1 {[%clk 0:01:36]} 35. Qf3 {[%clk 0:00:24]}  Bd2 {[%clk 0:01:26]} 36. Rd3 {[%clk 0:00:21]}  Qxd1+ {[%clk 0:00:52]} 37. Qxd1 {[%clk 0:00:22]}  Rc1 {[%clk 0:00:39]} 38. Rxd2 {[%clk 0:00:21]}  Bf5 {[%clk 0:00:29]} 39. Bxf5 {[%clk 0:00:16]}  gxf5 {[%clk 0:00:29]} 40. Rxb2 {[%clk 0:00:15]}  Rxd1+ {[%clk 0:00:29]} 41. Kg2 {[%clk 0:00:16]}  Rd5 {[%clk 0:00:24]} 42. f4 {[%clk 0:00:16]}  f6 {[%clk 0:00:18]} 43. exf6 {[%clk 0:00:09]}  Kf7 {[%clk 0:00:18]} 44. Rb6 {[%clk 0:00:09]}  h5 {[%clk 0:00:17]} 45. Kf3 {[%clk 0:00:08]}  d6 {[%clk 0:00:17]} 46. Rb8 {[%clk 0:00:08]}  Kxf6 {[%clk 0:00:18]} 47. Rh8 {[%clk 0:00:08]}  Kg6 {[%clk 0:00:18]} 48. Rd8 {[%clk 0:00:09]}  Rd3+ {[%clk 0:00:18]} 49. Kg2 {[%clk 0:00:09]}  d5 {[%clk 0:00:17]} 50. Rg8+ {[%clk 0:00:08]}  Kf6 {[%clk 0:00:17]} 51. Rg5 {[%clk 0:00:08]}  d4 {[%clk 0:00:17]} 52. Rxh5 {[%clk 0:00:07]}  Re3 {[%clk 0:00:17]} 53. Rh8 {[%clk 0:00:07]}  Ke7 {[%clk 0:00:17]} 54. Ra8 {[%clk 0:00:06]}  d3 {[%clk 0:00:17]} 55. Ra1 {[%clk 0:00:06]}  Kd6 {[%clk 0:00:16]} 56. Kf2 {[%clk 0:00:05]}  Re2+ {[%clk 0:00:15]} 57. Kf3 {[%clk 0:00:06]}  Kd5 {[%clk 0:00:16]} 58. Ra8 {[%clk 0:00:05]}  Kd4 {[%clk 0:00:15]} 59. Rd8+ {[%clk 0:00:05]}  Kc3 {[%clk 0:00:15]} 60. g4 {[%clk 0:00:04]}  fxg4+ {[%clk 0:00:10]} 61. Kxg4 {[%clk 0:00:05]}  d2 {[%clk 0:00:09]} 62. h5 {[%clk 0:00:05]}  Rg2+ {[%clk 0:00:09]} 63. Kf5 {[%clk 0:00:04]}  Rg3 {[%clk 0:00:09]} 64. Rxd2 {[%clk 0:00:02]}  Kxd2 {[%clk 0:00:10]} 65. h6 {[%clk 0:00:03]}  Ke3 {[%clk 0:00:10]} 66. h7 {[%clk 0:00:03]}  Rh3 {[%clk 0:00:10]} 67. Kg6 {[%clk 0:00:03]}  Kxf4 {[%clk 0:00:10]} 68. Kg7 {[%clk 0:00:04]}  Kg5 {[%clk 0:00:09]} 69. h8=Q {[%clk 0:00:05]}  Rxh8 {[%clk 0:00:09]} 70. Kxh8 {[%clk 0:00:06]} 1/2-1/2


[Site "https://www.chess.com"]

[Event "Titled Tuesday Blitz November 08 Late 2022"]
[White "Wirig, Anthony"]
[Black "Deac, Bogdan-Daniel"]
[WhiteFideId "615013"]
[BlackFideId "1226380"]
[WhiteElo "2487"]
[BlackElo "2648"]
[Result "0-1"]
[Round "07"]
[TimeControl "180+1"]
[Date "2022.11.08"]
[WhiteClock "0:00:25"]
[BlackClock "0:00:07"]

1. e4 {[%clk 0:02:59]}  c6 {[%clk 0:02:59]} 2. Nc3 {[%clk 0:02:59]}  d5 {[%clk 0:02:59]} 3. Nf3 {[%clk 0:03:00]}  Bg4 {[%clk 0:02:56]} 4. h3 {[%clk 0:03:00]}  Bxf3 {[%clk 0:02:56]} 5. Qxf3 {[%clk 0:03:01]}  e6 {[%clk 0:02:56]} 6. Be2 {[%clk 0:03:00]}  Bc5 {[%clk 0:02:50]} 7. O-O {[%clk 0:02:51]}  Nd7 {[%clk 0:02:50]} 8. Qg3 {[%clk 0:02:42]}  Bd4 {[%clk 0:02:38]} 9. d3 {[%clk 0:02:36]}  Ne7 {[%clk 0:02:35]} 10. Be3 {[%clk 0:02:15]}  Bxe3 {[%clk 0:02:00]} 11. Qxe3 {[%clk 0:02:16]}  Qb6 {[%clk 0:01:59]} 12. Qc1 {[%clk 0:02:11]}  O-O {[%clk 0:01:51]} 13. Rb1 {[%clk 0:02:07]}  f5 {[%clk 0:01:49]} 14. exd5 {[%clk 0:01:59]}  exd5 {[%clk 0:01:48]} 15. Qf4 {[%clk 0:01:35]}  Ng6 {[%clk 0:01:40]} 16. Qd6 {[%clk 0:01:17]}  Rad8 {[%clk 0:01:33]} 17. Bh5 {[%clk 0:00:55]}  Rf6 {[%clk 0:01:01]} 18. Qh2 {[%clk 0:00:50]}  Nge5 {[%clk 0:00:52]} 19. Rfe1 {[%clk 0:00:45]}  f4 {[%clk 0:00:46]} 20. Bg4 {[%clk 0:00:33]}  Nxg4 {[%clk 0:00:37]} 21. hxg4 {[%clk 0:00:34]}  Rdf8 {[%clk 0:00:37]} 22. g5 {[%clk 0:00:30]}  Rf5 {[%clk 0:00:33]} 23. Re7 {[%clk 0:00:22]}  Ne5 {[%clk 0:00:23]} 24. Re1 {[%clk 0:00:20]}  Ng6 {[%clk 0:00:17]} 25. Re8 {[%clk 0:00:20]}  Qxb2 {[%clk 0:00:13]} 26. Qh3 {[%clk 0:00:15]}  Qxc3 {[%clk 0:00:12]} 27. Qxf5 {[%clk 0:00:14]}  Qxe1+ {[%clk 0:00:12]} 28. Rxe1 {[%clk 0:00:14]}  Rxf5 {[%clk 0:00:12]} 29. Re8+ {[%clk 0:00:15]}  Rf8 {[%clk 0:00:11]} 30. Re1 {[%clk 0:00:15]}  Kf7 {[%clk 0:00:11]} 31. Rb1 {[%clk 0:00:16]}  b6 {[%clk 0:00:10]} 32. Kf1 {[%clk 0:00:17]}  Re8 {[%clk 0:00:10]} 33. a4 {[%clk 0:00:18]}  Re5 {[%clk 0:00:10]} 34. a5 {[%clk 0:00:19]}  b5 {[%clk 0:00:11]} 35. a6 {[%clk 0:00:19]}  Rxg5 {[%clk 0:00:09]} 36. Rb4 {[%clk 0:00:19]}  Re5 {[%clk 0:00:09]} 37. c4 {[%clk 0:00:19]}  dxc4 {[%clk 0:00:09]} 38. dxc4 {[%clk 0:00:20]}  Re4 {[%clk 0:00:09]} 39. Rb2 {[%clk 0:00:20]}  Rxc4 {[%clk 0:00:09]} 40. Rd2 {[%clk 0:00:21]}  Ke7 {[%clk 0:00:08]} 41. Re2+ {[%clk 0:00:21]}  Kd7 {[%clk 0:00:08]} 42. Rd2+ {[%clk 0:00:22]}  Kc7 {[%clk 0:00:08]} 43. Re2 {[%clk 0:00:23]}  Kb6 {[%clk 0:00:07]} 44. Re8 {[%clk 0:00:23]}  Kxa6 {[%clk 0:00:07]} 45. Rg8 {[%clk 0:00:24]}  b4 {[%clk 0:00:07]} 46. Rxg7 {[%clk 0:00:24]}  b3 {[%clk 0:00:07]} 47. Ke2 {[%clk 0:00:24]}  b2 {[%clk 0:00:07]} 48. Kd3 {[%clk 0:00:25]}  Rc1 {[%clk 0:00:07]} 0-1


[Site "https://www.chess.com"]

[Event "Titled Tuesday Blitz November 08 Late 2022"]
[White "Aguilar, Juan"]
[Black "Paiva, Henrique M A Albergaria"]
[WhiteFideId "3800091"]
[BlackFideId "1920995"]
[WhiteElo "2416"]
[BlackElo "1953"]
[Result "1-0"]
[Round "08"]
[TimeControl "180+1"]
[Date "2022.11.09"]
[WhiteClock "0:00:19"]
[BlackClock "0:01:17"]

1. d4 {[%clk 0:03:00]}  Nf6 {[%clk 0:02:59]} 2. c4 {[%clk 0:03:01]}  c5 {[%clk 0:02:58]} 3. d5 {[%clk 0:03:01]}  b5 {[%clk 0:02:58]} 4. Nf3 {[%clk 0:03:01]}  d6 {[%clk 0:02:54]} 5. Qc2 {[%clk 0:02:51]}  g6 {[%clk 0:02:54]} 6. e4 {[%clk 0:02:50]}  bxc4 {[%clk 0:02:51]} 7. Bxc4 {[%clk 0:02:49]}  Bg7 {[%clk 0:02:51]} 8. O-O {[%clk 0:02:46]}  O-O {[%clk 0:02:51]} 9. Nc3 {[%clk 0:02:46]}  Ba6 {[%clk 0:02:49]} 10. Qe2 {[%clk 0:02:26]}  Qb6 {[%clk 0:02:44]} 11. e5 {[%clk 0:02:16]}  Ng4 {[%clk 0:02:29]} 12. e6 {[%clk 0:02:02]}  f6 {[%clk 0:02:24]} 13. h3 {[%clk 0:01:59]}  Ne5 {[%clk 0:02:23]} 14. Nxe5 {[%clk 0:01:58]}  fxe5 {[%clk 0:02:23]} 15. Bg5 {[%clk 0:01:56]}  Bf6 {[%clk 0:02:18]} 16. Bxf6 {[%clk 0:01:56]}  Rxf6 {[%clk 0:02:18]} 17. Ne4 {[%clk 0:01:50]}  Rf5 {[%clk 0:02:17]} 18. b3 {[%clk 0:01:44]}  Bxc4 {[%clk 0:02:15]} 19. bxc4 {[%clk 0:01:44]}  Na6 {[%clk 0:02:08]} 20. Rab1 {[%clk 0:01:38]}  Qc7 {[%clk 0:02:07]} 21. Rb5 {[%clk 0:01:27]}  Rb8 {[%clk 0:02:06]} 22. Rfb1 {[%clk 0:01:25]}  Rb6 {[%clk 0:02:05]} 23. Qb2 {[%clk 0:01:18]}  Rxb5 {[%clk 0:02:05]} 24. Qxb5 {[%clk 0:01:17]}  Nb4 {[%clk 0:02:00]} 25. a3 {[%clk 0:01:09]}  Nc2 {[%clk 0:01:56]} 26. Qc6 {[%clk 0:00:53]}  Qd8 {[%clk 0:01:28]} 27. Rb7 {[%clk 0:00:47]}  Kg7 {[%clk 0:01:25]} 28. Nxd6 {[%clk 0:00:42]}  Qa5 {[%clk 0:01:21]} 29. Rxe7+ {[%clk 0:00:40]}  Kh6 {[%clk 0:01:21]} 30. Nxf5+ {[%clk 0:00:38]}  gxf5 {[%clk 0:01:21]} 31. Qd7 {[%clk 0:00:32]}  Qe1+ {[%clk 0:01:21]} 32. Kh2 {[%clk 0:00:31]}  Qxf2 {[%clk 0:01:21]} 33. Rxh7+ {[%clk 0:00:31]}  Kg5 {[%clk 0:01:21]} 34. Qg7+ {[%clk 0:00:28]}  Kf4 {[%clk 0:01:22]} 35. Qh6+ {[%clk 0:00:26]}  Ke4 {[%clk 0:01:17]} 36. Qh4+ {[%clk 0:00:19]} 1-0


[Site "https://www.chess.com"]

[Event "Titled Tuesday Blitz November 08 Late 2022"]
[White "Ali Abdullahi, Farah"]
[Black "Melikhov, Evgeny V."]
[WhiteFideId "16100212"]
[BlackFideId "4122046"]
[WhiteElo "2267"]
[BlackElo "2169"]
[Result "1/2-1/2"]
[Round "08"]
[TimeControl "180+1"]
[Date "2022.11.09"]
[WhiteClock "0:00:12"]
[BlackClock "0:00:07"]

1. b3 {[%clk 0:02:58]}  e5 {[%clk 0:02:58]} 2. Bb2 {[%clk 0:02:59]}  Nc6 {[%clk 0:02:58]} 3. e3 {[%clk 0:02:58]}  a6 {[%clk 0:02:58]} 4. Nf3 {[%clk 0:02:58]}  e4 {[%clk 0:02:58]} 5. Nd4 {[%clk 0:02:58]}  Nxd4 {[%clk 0:02:57]} 6. Bxd4 {[%clk 0:02:57]}  d5 {[%clk 0:02:56]} 7. d3 {[%clk 0:02:57]}  h5 {[%clk 0:02:47]} 8. Bb2 {[%clk 0:02:55]}  Bf5 {[%clk 0:02:45]} 9. Nd2 {[%clk 0:02:52]}  Ne7 {[%clk 0:02:34]} 10. Be2 {[%clk 0:02:51]}  Nc6 {[%clk 0:02:21]} 11. a3 {[%clk 0:02:38]}  Qg5 {[%clk 0:02:15]} 12. Bf1 {[%clk 0:02:12]}  h4 {[%clk 0:02:09]} 13. h3 {[%clk 0:02:11]}  O-O-O {[%clk 0:02:05]} 14. Qe2 {[%clk 0:02:08]}  exd3 {[%clk 0:01:55]} 15. cxd3 {[%clk 0:02:07]}  Qg6 {[%clk 0:01:43]} 16. Nf3 {[%clk 0:01:58]}  Bc5 {[%clk 0:01:34]} 17. d4 {[%clk 0:01:48]}  Bb6 {[%clk 0:01:14]} 18. Qd2 {[%clk 0:01:42]}  Qf6 {[%clk 0:01:09]} 19. Bd3 {[%clk 0:01:35]}  Bxd3 {[%clk 0:01:05]} 20. Qxd3 {[%clk 0:01:36]}  Rhe8 {[%clk 0:01:04]} 21. O-O-O {[%clk 0:01:32]}  g5 {[%clk 0:00:58]} 22. Kb1 {[%clk 0:01:30]}  Kb8 {[%clk 0:00:47]} 23. Ka2 {[%clk 0:01:30]}  Qe7 {[%clk 0:00:37]} 24. Rc1 {[%clk 0:01:28]}  f6 {[%clk 0:00:36]} 25. Rc2 {[%clk 0:01:27]}  Qe4 {[%clk 0:00:36]} 26. Qxe4 {[%clk 0:01:17]}  Rxe4 {[%clk 0:00:30]} 27. b4 {[%clk 0:01:13]}  Ne7 {[%clk 0:00:28]} 28. Nd2 {[%clk 0:01:07]}  Re6 {[%clk 0:00:27]} 29. Nb3 {[%clk 0:01:07]}  c6 {[%clk 0:00:26]} 30. Nc5 {[%clk 0:01:06]}  Bxc5 {[%clk 0:00:26]} 31. dxc5 {[%clk 0:01:01]}  f5 {[%clk 0:00:20]} 32. a4 {[%clk 0:00:52]}  Kc7 {[%clk 0:00:19]} 33. Kb3 {[%clk 0:00:44]}  Re4 {[%clk 0:00:19]} 34. Rd1 {[%clk 0:00:41]}  Re8 {[%clk 0:00:15]} 35. Bf6 {[%clk 0:00:38]}  Rg8 {[%clk 0:00:11]} 36. Rd4 {[%clk 0:00:36]}  Re6 {[%clk 0:00:11]} 37. Bxe7 {[%clk 0:00:35]}  Rxe7 {[%clk 0:00:11]} 38. Kc3 {[%clk 0:00:33]}  Re4 {[%clk 0:00:10]} 39. Kd3 {[%clk 0:00:32]}  Rge8 {[%clk 0:00:10]} 40. Rb2 {[%clk 0:00:30]}  Rxd4+ {[%clk 0:00:09]} 41. exd4 {[%clk 0:00:31]}  Re1 {[%clk 0:00:09]} 42. b5 {[%clk 0:00:24]}  axb5 {[%clk 0:00:09]} 43. axb5 {[%clk 0:00:25]}  Rd1+ {[%clk 0:00:08]} 44. Ke3 {[%clk 0:00:24]}  Re1+ {[%clk 0:00:07]} 45. Kd2 {[%clk 0:00:24]}  Rg1 {[%clk 0:00:06]} 46. bxc6 {[%clk 0:00:20]}  bxc6 {[%clk 0:00:06]} 47. Kd3 {[%clk 0:00:18]}  Rxg2 {[%clk 0:00:07]} 48. Re2 {[%clk 0:00:18]}  Rh2 {[%clk 0:00:06]} 49. Re7+ {[%clk 0:00:17]}  Kc8 {[%clk 0:00:06]} 50. Rg7 {[%clk 0:00:17]}  Rxh3+ {[%clk 0:00:05]} 51. Ke2 {[%clk 0:00:16]}  g4 {[%clk 0:00:06]} 52. Rg6 {[%clk 0:00:15]}  Kd7 {[%clk 0:00:05]} 53. Rg7+ {[%clk 0:00:16]}  Kc8 {[%clk 0:00:05]} 54. Rg6 {[%clk 0:00:16]}  Kb7 {[%clk 0:00:05]} 55. Rg7+ {[%clk 0:00:16]}  Ka6 {[%clk 0:00:05]} 56. Rc7 {[%clk 0:00:16]}  Kb5 {[%clk 0:00:05]} 57. Rf7 {[%clk 0:00:17]}  Rf3 {[%clk 0:00:05]} 58. Rb7+ {[%clk 0:00:13]}  Kc4 {[%clk 0:00:05]} 59. Rc7 {[%clk 0:00:13]}  Kxd4 {[%clk 0:00:04]} 60. Rxc6 {[%clk 0:00:13]}  Rc3 {[%clk 0:00:04]} 61. Rf6 {[%clk 0:00:12]}  Ke5 {[%clk 0:00:03]} 62. Rc6 {[%clk 0:00:11]}  h3 {[%clk 0:00:03]} 63. Rc8 {[%clk 0:00:11]}  h2 {[%clk 0:00:03]} 64. Rh8 {[%clk 0:00:11]}  Rxc5 {[%clk 0:00:03]} 65. Rxh2 {[%clk 0:00:11]}  Rc2+ {[%clk 0:00:04]} 66. Ke3 {[%clk 0:00:11]}  d4+ {[%clk 0:00:03]} 67. Kd3 {[%clk 0:00:11]}  Rc3+ {[%clk 0:00:04]} 68. Kd2 {[%clk 0:00:12]}  Rf3 {[%clk 0:00:04]} 69. Ke2 {[%clk 0:00:11]}  Kf4 {[%clk 0:00:05]} 70. Rh8 {[%clk 0:00:11]}  g3 {[%clk 0:00:05]} 71. fxg3+ {[%clk 0:00:11]}  Rxg3 {[%clk 0:00:05]} 72. Rd8 {[%clk 0:00:11]}  Rg2+ {[%clk 0:00:05]} 73. Kf1 {[%clk 0:00:10]}  Rd2 {[%clk 0:00:04]} 74. Ke1 {[%clk 0:00:11]}  Rd3 {[%clk 0:00:05]} 75. Ke2 {[%clk 0:00:11]}  Re3+ {[%clk 0:00:05]} 76. Kf2 {[%clk 0:00:11]}  Re4 {[%clk 0:00:06]} 77. Rh8 {[%clk 0:00:10]}  Re5 {[%clk 0:00:06]} 78. Rh4+ {[%clk 0:00:10]}  Kg5 {[%clk 0:00:06]} 79. Rxd4 {[%clk 0:00:10]}  Ra5 {[%clk 0:00:06]} 80. Kg2 {[%clk 0:00:10]}  f4 {[%clk 0:00:06]} 81. Rd8 {[%clk 0:00:09]}  Ra2+ {[%clk 0:00:05]} 82. Kf3 {[%clk 0:00:09]}  Ra3+ {[%clk 0:00:05]} 83. Kf2 {[%clk 0:00:10]}  Ra2+ {[%clk 0:00:05]} 84. Kf3 {[%clk 0:00:10]}  Ra3+ {[%clk 0:00:05]} 85. Kf2 {[%clk 0:00:11]}  Kf5 {[%clk 0:00:05]} 86. Rf8+ {[%clk 0:00:10]}  Ke4 {[%clk 0:00:06]} 87. Re8+ {[%clk 0:00:11]}  Kf5 {[%clk 0:00:06]} 88. Rf8+ {[%clk 0:00:11]}  Kg5 {[%clk 0:00:06]} 89. Rg8+ {[%clk 0:00:12]}  Kf6 {[%clk 0:00:06]} 90. Rf8+ {[%clk 0:00:12]}  Kg5 {[%clk 0:00:06]} 91. Rg8+ {[%clk 0:00:12]}  Kh4 {[%clk 0:00:07]} 92. Rh8+ {[%clk 0:00:11]}  Kg4 {[%clk 0:00:07]} 93. Rg8+ {[%clk 0:00:12]}  Kf5 {[%clk 0:00:07]} 94. Rf8+ {[%clk 0:00:12]} 1/2-1/2


[Site "https://www.chess.com"]